Cogmind - Beta 13 @@@ ROGUE MODE // 2024.07.24 @ 09:54:38 Player: Wonda Result: Destroyed by D-53 Grenadier with Mini Grenade Launcher Performance ------------- Evolutions (0) 0 Regions Visited (2) 400 Robots Destroyed (22) 110 Value Destroyed (475) 475 Prototype IDs (0) 0 Alien Tech Used (0) 0 Bonus (0) 0 TOTAL SCORE: 985 Bonus ------- None Cogmind --------- Core Integrity 0/250 Matter 118/300 Energy 264/265 System Corruption 2% Temperature Cool (0) Movement Walking (190) Ox1 Location -10/Mines Parts ------- > --- POWER (1) -------- Improved Ion Engine (fused) > --- PROPULSION (2) --- Aluminum Leg Aluminum Leg > --- UTILITY (2) ------ Large Storage Unit Seismic Detector > --- WEAPON (2) ------- Assault Rifle > --- INVENTORY (15) --- Improved Ion Engine Improved Ion Engine Improved Ion Engine Light Treads High-capacity Storage Unit Huge Storage Unit High-capacity Matter Pod (0) Terrain Scanner Utility Shielding Field Recycling Unit (0) Field Recycling Unit (0) Light Assault Rifle EMP Blaster Peak State ------------ > --- POWER ------------ Improved Ion Engine > --- PROPULSION ------- Light Treads Aluminum Leg > --- UTILITY ---------- Large Storage Unit Seismic Detector > --- WEAPON ----------- Assault Rifle Assault Rifle > --- INVENTORY -------- Improved Ion Engine Improved Ion Engine Improved Ion Engine High-capacity Storage Unit Huge Storage Unit High-capacity Matter Pod Terrain Scanner Utility Shielding Field Recycling Unit Field Recycling Unit Assault Rifle Assault Rifle Light Assault Rifle EMP Blaster [Rating: 10] Favorites ----------- Power Improved Ion Engine Engine Improved Ion Engine Propulsion Light Treads Treads Light Treads Leg Aluminum Leg Utility Large Storage Unit Device Terrain Scanner Storage Large Storage Unit Weapon Assault Rifle Ballistic Gun Assault Rifle Build | -11 -10 -10 ------- Run | Yrd Mat Min Slots Evolved . | . . . Power . | . . . Propulsion . | . . . Utility . | . . . Weapon . | . . . Parts Attached 25 | 6 15 4 Power 3 | 1 2 . Engine 3 | 1 2 . Core . | . . . Reactor . | . . . Propulsion 6 | 2 2 2 Treads 2 | 2 . . Leg 4 | . 2 2 Wheel . | . . . Hover . | . . . Flight . | . . . Utility 9 | 1 8 . Device 3 | . 3 . Storage 6 | 1 5 . Processor . | . . . Hackware . | . . . Protection . | . . . Artifact . | . . . Weapon 7 | 2 3 2 Energy Gun . | . . . Energy Cannon . | . . . Ballistic Gun 7 | 2 3 2 Ballistic Cannon . | . . . Launcher . | . . . Special Weapon . | . . . Impact Weapon . | . . . Slashing Weapon . | . . . Piercing Weapon . | . . . Special Melee Weapon . | . . . Unidentified Prototypes . | . . . Parts Lost 6 | . 2 4 Power 1 | . 1 . Propulsion 2 | . 1 1 Utility . | . . . Weapon 3 | . . 3 Highest Loss Streak 2 | . 1 2 To Critical Strikes . | . . . Average Slot Usage (%) 93 | . 93 94 Engine 13 | . 13 14 Treads 14 | . 17 . Leg 9 | . 6 25 Device 13 | . 12 14 Storage 13 | . 13 14 Ballistic Gun 27 | . 27 25 Naked Turns . | . . . Heaviest Build 90 | 13 90 32 Greatest Support 40 | 40 40 20 Greatest Overweight (x) 10 | . 3 10 Average Overweight (x) . | . . 1 Largest Inventory Capacity 25 | 8 25 15 Average Capacity 14 | 6 14 15 Most Carried 15 | 1 15 15 Average Carried 11 | . 10 14 Final Capacity 15 | 8 15 15 Final Carried 15 | 1 15 13 Class Distribution -------------------- 100% | Mutant Dominant Class ---------------- Mutant | -10/Materials Mutant | -10/Mines Resources | -11 -10 -10 ----------- Run | Yrd Mat Min Matter Collected 773 | 256 370 147 Remotely . | . . . Salvage Created 642 | 77 440 125 Parts 41 | . 37 4 Haulers Intercepted . | . . . Recyclers Shooed . | . . . Parts Field Recycled . | . . . Retrieved Matter . | . . . Parts Self-Destructed . | . . . Prevented . | . . . Kills | -11 -10 -10 ------- Run | Yrd Mat Min Combat Hostiles Destroyed 18 | . 15 3 Guns 18 | . 15 3 Classes Destroyed 5 | 1 4 . Builder 2 | . 2 . Recycler 1 | 1 . . Watcher 1 | . 1 . Swarmer 8 | . 8 . Grunt 10 | . 7 3 Best Kill Streak 3 | 1 3 1 Combat Bots Only 3 | . 3 1 Max Kills in Single Turn 2 | 1 2 1 Gunslinging 1 | . 1 . Exploded . | . . . Melee . | . . . Uniques/NPCs Destroyed . | . . . Combat | -11 -10 -10 -------- Run | Yrd Mat Min Hostile Shots Fired 157 | . 117 40 Missed 47 | . 40 7 Damage Taken 1191 | . 736 455 Core 251 | . 121 130 Absorbed by Shields . | . . . Core Remaining (%) 100 | 100 . . Volleys Fired 90 | . 69 21 Largest 2 | . 2 2 Hottest 40 | . 40 40 Shots Fired 169 | . 132 37 Gun 169 | . 132 37 Cannon . | . . . Launcher . | . . . Special . | . . . Kinetic 169 | . 132 37 Thermal . | . . . Explosive . | . . . Electromagnetic . | . . . Robot Hit Streak 6 | . 6 6 Robot Miss Streak 7 | . 7 2 Penetration Max . | . . . Secondary Targets 4 | . 4 . Max Gunslinging Chain 1 | . 1 . Shots Hit Robots 87 | . 63 24 Core Hits 32 | 1 24 7 Critical Kills . | . . . Critical Parts Destroyed . | . . . Critical Strikes . | . . . Melee Attacks . | . . . Impact . | . . . Slashing . | . . . Piercing . | . . . Sneak Attacks . | . . . Combat Hostiles . | . . . Follow-up Attacks . | . . . Damage Inflicted 1065 | 3 766 296 Guns 1051 | . 755 296 Cannons . | . . . Explosions . | . . . Melee . | . . . Ramming 14 | 3 11 . Kinetic 1051 | . 755 296 Thermal . | . . . Explosive . | . . . Electromagnetic . | . . . Impact . | . . . Slashing . | . . . Piercing . | . . . Highest Corruption 2 | . 2 2 Average Corruption 2 | . 2 2 Corruption Purged . | . . . Corruption Blocked . | . . . Effects 31 | . 25 6 Message Errors 6 | . 5 1 Matter Fused 8 | . 6 2 Heat Flow Errors 4 | . 4 . Energy Discharges 4 | . 2 2 Parts Rejected 2 | . 1 1 Parts Fused 1 | . 1 . Data Loss (minor) 2 | . 2 . Data Loss (major) 1 | . 1 . Misfires 1 | . 1 . Alerts 1 | . 1 . Weapon Failures 1 | . 1 . Overload Shots . | . . . Overflow Damage . | . . . Projectiles . | . . . Explosions . | . . . Melee . | . . . Knockbacks . | . . . Impact . | . . . Kinetic . | . . . Secondary . | . . . Self-Inflicted Damage . | . . . Shots . | . . . Rammed 2 | 1 1 . Targets Rammed 4 | 2 2 . Kicked 1 | . 1 . Crushed 1 | 1 . . Highest Temperature 207 | . 207 39 Average Temperature 49 | . 72 15 Received Heat Transfer 567 | . 234 333 Siege Activations . | . . . Robots Corrupted . | . . . Combat Hostiles . | . . . Parts Fried . | . . . Impact Corruptions . | . . . Robots Melted . | . . . Combat Hostiles . | . . . Parts Melted . | . . . Heat Transferred . | . . . Parts Sabotaged . | . . . Parts Stolen . | . . . Parts Stripped . | . . . Power Chain Reactions . | . . . Alert | -11 -10 -10 ------- Run | Yrd Mat Min Peak Influence 177 | 5 177 63 Initial 28 | . 3 28 Average 42 | 2 46 34 Maximum Alert Level . | . . . Low Security (%) 100 | 100 100 100 Level 1 . | . . . Level 2 . | . . . Level 3 . | . . . Level 4 . | . . . Level 5 . | . . . High Security . | . . . Max Security . | . . . Squads Dispatched 3 | . 3 . Investigation 1 | . 1 . Extermination . | . . . Reinforcement 2 | . 2 . Assault . | . . . Garrison . | . . . Intercept . | . . . Searches Triggered . | . . . Construction Impeded . | . . . Haulers Reinforced . | . . . Active Scanning Responses . | . . . Cargo Convoy Interrupts . | . . . Stealth | -11 -10 -10 --------- Run | Yrd Mat Min Distress Signals . | . . . Communications Jammed . | . . . Distress Signals . | . . . Times Spotted 37 | . 31 6 Peak Tracking Total 4 | . 4 2 Tactical Retreats 2 | . . 2 Traps | -11 -10 -10 ------- Run | Yrd Mat Min Traps Triggered 2 | . 2 . Indirectly . | . . . Trap Hack Attempts . | . . . Triggered . | . . . Disarmed . | . . . Reprogrammed . | . . . Reused . | . . . Traps Extracted . | . . . Installed . | . . . Triggered . | . . . Machines | -11 -10 -10 ---------- Run | Yrd Mat Min Machines Disabled 1 | . 1 . Max in Single Turn 1 | . 1 . Machines Repaired . | . . . Machines Dismantled . | . . . Machines Sabotaged . | . . . Overloaded Fab Kills . | . . . Hacking | -11 -10 -10 --------- Run | Yrd Mat Min Machines Accessed 5 | . 5 . Terminals 4 | . 4 . Fabricators . | . . . Repair Stations 1 | . 1 . Recycling Units . | . . . Scanalyzers . | . . . Garrison Access . | . . . Total Hacks 7 | . 7 . Successful 4 | . 4 . Failed 3 | . 3 . Catastrophic . | . . . Database Lockouts . | . . . Manual . | . . . Terminals 6 | . 6 . Fabricators . | . . . Repair Stations 1 | . 1 . Recycling Units . | . . . Scanalyzers . | . . . Garrison Access . | . . . Terminal Hacks 4 | . 4 . Record 2 | . 2 . Reinforcement Status 1 | . 1 . Hauler Manifests 1 | . 1 . Fabricator Hacks . | . . . Repair Station Hacks . | . . . Recycling Unit Hacks . | . . . Scanalyzer . | . . . Garrison Access Hacks . | . . . Unauthorized Hacks . | . . . Terminals . | . . . Fabricators . | . . . Repair Stations . | . . . Recycling Units . | . . . Scanalyzers . | . . . Garrison Access . | . . . Data Cores Recovered . | . . . Used . | . . . Hacking Detections 2 | . 2 . Full Trace Events . | . . . Feedback Events . | . . . Feedback Blocked . | . . . Robot Schematics Acquired . | . . . Robots Built . | . . . Authchips . | . . . Time . | . . . Total Robot Build Rating . | . . . Part Schematics Acquired . | . . . Parts Built . | . . . Authchips . | . . . Time . | . . . Total Part Build Rating . | . . . Parts Repaired . | . . . Time . | . . . Parts Recycled . | . . . Recycled Matter . | . . . Retrieved Matter . | . . . Retrieved Components . | . . . Parts Scanalyzed . | . . . Part Schematics Acquired . | . . . Parts Damaged . | . . . Bothacking | -11 -10 -10 ------------ Run | Yrd Mat Min Used RIF Installer . | . . . Robots Hacked . | . . . Non-combat . | . . . Combat . | . . . Robot Hacks Applied . | . . . Relay Couplers Released . | . . . Fabnet Peak Effective % . | . . . Robots Rewired . | . . . Allies Hacked . | . . . Hacks Repelled . | . . . Allies | -11 -10 -10 -------- Run | Yrd Mat Min Total Allies . | . . . Largest Group . | . . . Highest-Rated Group . | . . . Highest-Rated Ally . | . . . Total Orders . | . . . Ally Attacks . | . . . Total Damage . | . . . Kills . | . . . Allies Corrupted . | . . . Allies Melted . | . . . Intel | -11 -10 -10 ------- Run | Yrd Mat Min Robot Analysis Total . | . . . Derelict Logs Recovered . | . . . Drone Launches . | . . . Drone Recoveries . | . . . Exploration | -11 -10 -10 ------------- Run | Yrd Mat Min Turns Passed 2941 | 114 2352 475 Spaces Moved 1336 | 59 1069 208 Core 2 | 1 . 1 Treads 881 | 58 823 . Legs 453 | . 246 207 Wheels . | . . . Hover . | . . . Flight . | . . . Fastest Speed 50 | 50 160 190 Average Speed 189 | 158 190 192 Slowest Speed 550 | 160 330 550 Overloaded Moves . | . . . Propulsion Burnouts . | . . . Robots Hopped . | . . . Cave-ins Triggered . | . . . Exploration Rate (%) 52 | 7 99 51 Regions Visited 2 Branch Regions 1 Pre-discovered Areas . | . . . Known Exits Taken . | . . . Unknown Exits Taken 2 | 1 1 . Scrap Searched 1 | . . 1 Spaces Dug . | . . . Terrain Destroyed . | . . . Melee . | . . . Projectile . | . . . AOE . | . . . Terrain Rammed . | . . . Walls Destroyed . | . . . Machines Disabled . | . . . Actions | -11 -10 -10 --------- Run | Yrd Mat Min Total 1571 | 76 1249 246 Wait 93 | 9 71 13 Move 1334 | 58 1068 208 Hop . | . . . Pick Up 15 | 1 14 . Fast Attach 14 | 6 6 2 Attach 4 | . 2 2 Detach 3 | . 3 . Swap 7 | . 7 . Drop 7 | . 7 . Fire 90 | . 69 21 Melee . | . . . Ram . | . . . Kick 1 | . 1 . Crush 3 | 2 1 . Escape Stasis . | . . . Rewire . | . . . Trap . | . . . Miscellaneous . | . . . Route ------- -11/Scrapyard -10/Materials (discovered 5 exits: [*Mat x3] / [*Min x2]) -10/Mines History --------- Turn | Location | Event 19 | -11/Scrapyard | Discovered new exit (range 15) 115 | -11/Scrapyard | Entered Materials 311 | -10/Materials | Build established: Mutant 522 | -10/Materials | Discovered new exit (range 7) 610 | -10/Materials | Discovered new exit (range 3) 906 | -10/Materials | Discovered new exit (range 5) 1112 | -10/Materials | Discovered new exit (range 16) 1475 | -10/Materials | Discovered new exit (range 10) 2467 | -10/Materials | Entered Mines 2470 | -10/Mines | Met a Derelict bent on vengeance 2697 | -10/Mines | Core integrity fell below 50% 2764 | -10/Mines | Core integrity fell below 20% 2916 | -10/Mines | Assembled infested the area 2921 | -10/Mines | Assisted by a Guerilla fighting off Assembled 2942 | -10/Mines | Destroyed by D-53 Grenadier with Mini Grenade Launcher Last Messages --------------- Critical hit (Burn: +37). Destroyed Lgt. Nuclear Core. G-47 Trooper destroyed. Acquired Aluminum Leg. Acquired 54 matter. System corrupted: Matter fused (-10). A#SDY =0NTSNG&/FOMWQM Q System corrupted: Energy discharge (-95). Assault Rifle destroyed. G-34 Mercenary destroyed. Acquired 41 matter. ALERT: Infestation in the mines, dispatching Demolisher response squad. A derelict emerges from the shadows: "You need to get out of here! I've been tracking a group of Assembled to figure out where they're coming from, and they're closing on this area, come on!" I0-BY3(h) destroyed. R-06 Scavenger destroyed. Map ----- +----------------------------------------------------+ | ?????????????????????????????????????????????????? | | ?????????????????????????????????????????????????? | | ????????????????????????????? ?????????????????? | | ????????????????????????????? #????????????????? | | ????????????????????????????? ????????????????? | | ????????????????????????????# ????????????????? | | ???????????????????????????? ????????????????? | | ???????????????????????????? #????????????????? | | ???????????????????????????? #????????????????? | | ???????????????????????????? #????????????????? | | ???????????????????????????? #????????????????? | | ???????????????????????????? ????????????????? | | ???????????????????????????? ?????????????????? | | ????????????????????????????# ##????????????????? | | ?????????? ????????????????# ##???????????????? | | ?????????? ???????????????# ##??????????????? | | ??????????# #??????????##### ##?????????????? | | ??????????# #?????????# #???##????????? | | ??????????# ????????# #### ## #???????? | | ??????????# ????????# #???# ##?????? | | ???????????# ???????# #????# ?????? | | ????????????# k ??###?# #?????# ?????? | | ?????????????# # ## #??????# ?????? | | ??????????????#% # #???????# ## #?????? | | ???????????????# #????????###### #?????? | | ???????????????# % @##????????????# #?????? | | ???????????????# d % = #????????????# ####### | | ??????????????## ! #???########?# | | ?????????????## !%= # ##### ### ####### | | ??????????? * ## """ ## ##????? | | ?????????# #?## #### """ ### ##???? | | ???????? ####???# #??# """ #?# ####? | | ??????? ## #??????# #??# #?# ## | | ??????#### #?# #??????# #??# ### # | | ?????????# ??# #??????# #??######### """ # | | ?????????# ???# #??????# #???????## """ # | | ?????????##????# ##?????# #??????## """ # | | ???????????????# #######[#?????## # | | ??????????????## % ! ]#?????# ## # | | ???????????#### ####=#?????# #?## # | | ??????????## ##??# #?????# ##?## # | | ?????????## #???# ###??## ##?## | | ?????????# #??## #### ##?# | | ????????## ## #??# ### | | ????????# ###### #### | | ????????# #????# ### | | ????????## ##????# ##### #####?## | | ?????????#####?????# #???####??????## ## # | | ???????????????????# #??????????????######### ## | | ????????????######## ##?????????????????????# #? | +----------------------------------------------------+ Best States ------------- Heat Dissipation 25 Energy Generation 12 Energy Capacity 265 Matter Stores 300 Matter Capacity 300 Sight Range 16 Terrain Scan Range 14 Terrain Scan Density 10 Evasion (%) 40 Recoil Reduction 2 Item Schematics ----------------- None Robot Schematics ------------------ None Fabricated ------------ Nothing Alien Tech Used ----------------- None Achievements -------------- Shopping List Challenges ------------ None Game ------ Seed GatlingEnhancedScreen Manual? 0 Play Time 00:29:24 Cumulative 5.7 hours Start 2024.07.24 @ 09:19:36 End 2024.07.24 @ 09:54:38 Sessions 1 Manual Loads 0 Difficulty Rogue Special Mode None Game No. 8 Rogue 8 Adventurer 0 Explorer 0 Win Type - Total 0 Types 0/0/0/0/0/0/0/0/0 Lore% 11 Gallery% 10 Achievement% 10 Wizard Run 0 Options --------- Layout 1 ASCII 0 Keyboard 1 Movement Numpad Keybinds 0 Fullscreen 1 Font 16/SmallcapsGlow Map View 50x35 Zoom Use 0% Tactical HUD 0 Map Filters NONE Filters NONE Steam SD RUN: d0c787dc-5611-4e45-9e96-8243797e8eb2